bitfinex/quotes_ETHUSD_20250422
["timestamp","ask_amount","ask_price","bid_price","bid_amount"]
[1745340673579,8.33553807,1691.4,1690.8,0.7746]
[1745340673580,5.91298218,1691.2,1690.8,0.7746]
[1745340673804,5.91286013,1691.3,1690.8,0.7746]
[1745340674012,5.97807744,1691.2,1690.8,0.7746]
[1745340674183,5.97807744,1691.2,1690.9,0.14163039]
[1745340674382,0.59780774,1691.1,1690.9,0.14163039]
[1745340674711,0.06487869,1691.0,1690.9,0.14163039]
[1745340675072,0.06487869,1691.0,1690.6,9.68949503]
[1745340675314,5.97853924,1691.0,1690.9,0.14163039]
[1745340675674,5.91451779,1690.8,1690.4,4.21275971]
[1745340675878,1.24775208,1690.8,1690.4,9.69023328]
[1745340676660,2.07675208,1690.8,1690.4,0.7746]
[1745340676780,5.999,1690.7,1690.2,0.05915486]
[1745340676975,5.9801867,1690.6,1690.1,12.60786869]
[1745340677206,5.9801867,1690.6,1690.2,5.91643533]
[1745340677207,0.06487869,1690.6,1690.2,5.91643533]
[1745340677385,0.06487869,1690.6,1690.1,6.69117371]
[1745340677710,1.28077846,1690.6,1690.3,5.91601016]
[1745340677899,11.91372524,1690.7,1690.2,5.91622692]
[1745340678215,11.97860393,1690.7,1690.2,5.91622692]
[1745340678428,6.06387869,1690.7,1690.3,5.91601214]
[1745340678603,11.97862246,1690.7,1690.3,5.91601214]
[1745340679315,6.06387869,1690.7,1690.5,5.9153505]
[1745340679538,6.06387869,1690.7,1690.4,5.91569518]
[1745340679539,5.999,1690.7,1690.4,5.91569518]
[1745340679676,5.999,1690.7,1690.4,5.91553531]
[1745340679874,5.999,1690.7,1690.4,6.50708884]
[1745340680381,5.999,1690.7,1690.4,0.59155353]
[1745340680592,5.999,1690.7,1690.3,12.2648319]
[1745340680593,5.999,1690.7,1690.3,3.0]
[1745340680891,6.06387869,1690.7,1690.3,5.91583617]
[1745340681095,5.999,1690.7,1690.4,5.91563914]
[1745340681392,5.999,1690.7,1690.5,0.5908]
[1745340682085,6.06387869,1690.7,1690.5,0.5908]
[1745340682387,6.06387869,1690.7,1690.4,0.5908]
[1745340682388,13.68107642,1690.7,1690.4,0.5908]
[1745340682551,5.98016551,1690.6,1690.4,0.5908]
[1745340682753,0.06487869,1690.6,1690.4,0.5908]
[1745340683198,5.98005889,1690.6,1690.5,0.13051313]
[1745340683602,5.98005889,1690.6,1690.2,0.5908]
[1745340683768,7.35468775,1690.6,1690.5,0.13173929]
[1745340683968,7.35468775,1690.6,1690.2,0.5908]
[1745340684187,7.35468775,1690.6,1690.4,0.5908]
[1745340684612,7.35468775,1690.6,1690.5,0.13173929]
[1745340685097,8.18368775,1690.6,1690.5,0.13173929]
[1745340685595,8.18368775,1690.6,1690.2,0.5908]
[1745340685596,5.9155722,1690.5,1690.2,0.5908]
[1745340685908,0.06487869,1690.4,1690.2,0.5908]
[1745340686077,0.06487869,1690.4,1690.3,0.72389819]
[1745340686275,2.20362886,1690.6,1690.3,0.72389819]
[1745340686603,18.38468876,1690.8,1690.3,7.45531883]
[1745340686799,12.69073938,1690.8,1690.3,7.45531883]
[1745340687039,12.75561807,1690.8,1690.3,7.45531883]
[1745340687181,8.70805589,1690.8,1690.3,0.72389819]
[1745340687378,5.91517646,1690.6,1690.3,0.72389819]
[1745340687984,5.91575958,1690.4,1690.3,0.72389819]
[1745340688169,17.60870896,1690.4,1690.3,0.13309819]
[1745340688373,17.60870896,1690.4,1689.6,1.4063]
[1745340688601,5.91725578,1690.0,1689.7,0.1276609]
[1745340688768,5.98213447,1690.0,1689.7,0.1276609]
[1745340688975,0.06487869,1690.0,1689.6,1.4063]
[1745340689292,5.9176042,1689.9,1689.7,0.1276609]
[1745340689495,17.61032606,1690.0,1689.7,0.1276609]
[1745340689692,17.61032606,1690.0,1689.5,0.5908]
[1745340690018,0.06487869,1689.9,1689.5,0.5908]
[1745340690315,5.91822387,1689.7,1689.6,0.11668087]
[1745340690675,6.76030256,1689.7,1689.6,0.11668087]
[1745340690901,5.91946431,1689.4,1689.1,0.8155]
[1745340691238,5.993,1689.5,1689.2,0.1201614]
[1745340691537,11.97689595,1689.5,1689.1,3.8155]
[1745340691694,5.91927807,1689.4,1689.2,0.12054113]
[1745340691895,5.91927807,1689.4,1689.1,3.8155]
[1745340692098,5.98415676,1689.4,1689.2,0.12054113]
[1745340692398,5.98415676,1689.4,1689.1,0.8155]
[1745340692598,0.06487869,1689.4,1689.3,0.11986068]
[1745340692842,11.97701167,1689.5,1689.2,0.12054113]
[1745340693039,11.97701167,1689.5,1689.3,0.11986068]
[1745340693542,6.05787869,1689.5,1689.4,0.11918032]
[1745340693703,6.05787869,1689.5,1689.1,6.73559497]
[1745340694038,5.993,1689.5,1689.2,6.04043337]
[1745340694241,5.993,1689.5,1689.2,6.04031545]
[1745340694400,5.994,1689.7,1689.4,5.91919126]
[1745340694796,5.994,1689.7,1689.5,0.93209976]
[1745340694997,12.68977724,1689.9,1689.5,0.93209976]
[1745340695211,3.0,1689.8,1689.5,0.93209976]
[1745340695413,8.91787905,1689.8,1689.5,0.93209976]
[1745340695631,5.9182114,1689.7,1689.5,0.93209976]
[1745340695807,5.9182114,1689.7,1689.5,0.11659976]
[1745340696212,5.9182114,1689.7,1689.3,0.8155]
[1745340696415,5.9182114,1689.7,1689.6,0.1159197]
[1745340696642,5.9182114,1689.7,1689.3,0.8155]
[1745340696841,5.98309009,1689.7,1689.6,0.11579301]
[1745340697025,5.98309009,1689.7,1689.3,2.08099617]
[1745340697212,5.98309009,1689.7,1689.6,0.11579301]
[1745340697413,5.98309009,1689.7,1689.3,0.8155]
[1745340697713,11.838336,1689.5,1689.0,5.92064785]
[1745340697915,5.9840129,1689.5,1689.1,0.59206479]
[1745340698756,5.9193587,1689.4,1689.1,0.59206479]
[1745340698930,5.91970998,1689.3,1688.9,6.73632971]
[1745340699130,5.9193587,1689.4,1688.9,6.73629029]
[1745340699766,5.98456728,1689.3,1689.0,0.12867771]
[1745340699971,0.06487869,1689.3,1689.0,0.12867771]
[1745340700915,0.06487869,1689.3,1689.0,6.04931886]
[1745340701121,0.06487869,1689.4,1689.1,0.5908]
[1745340701432,5.98426144,1689.4,1689.2,0.11988638]
[1745340701631,0.06487869,1689.4,1689.2,0.11988638]
[1745340701819,12.46614938,1689.6,1689.1,6.51088869]
[1745340702020,12.53102807,1689.6,1689.3,0.11920599]
[1745340702223,5.69394938,1689.6,1689.4,5.97822481]
[1745340702458,5.996,1689.7,1689.5,5.91891092]
[1745340702824,5.996,1689.7,1689.6,0.11982608]
[1745340703223,5.996,1689.7,1689.6,0.90822608]
[1745340705063,5.996,1689.7,1689.6,0.11982608]
[1745340705555,5.996,1689.7,1689.6,0.1203329]
[1745340705949,5.996,1689.7,1689.4,5.91926089]
[1745340706154,5.996,1689.7,1689.5,0.12164686]
[1745340707962,11.91422186,1689.7,1689.3,6.7077982]
[1745340708126,5.996,1689.7,1689.4,0.12156692]
[1745340708326,11.91421928,1689.7,1689.3,6.7077982]
[1745340708757,11.91421928,1689.7,1689.4,0.12245405]
[1745340708963,0.8197,1689.6,1689.1,0.5908]
[1745340709148,5.98394154,1689.5,1689.2,0.71055965]
[1745340709355,5.98392321,1689.5,1689.2,0.71055965]
[1745340710254,5.98395803,1689.5,1689.2,0.71055965]
[1745340710671,5.9192857,1689.4,1689.2,0.71055965]
[1745340712444,5.98416439,1689.4,1689.2,0.71055965]
[1745340712774,5.91961167,1689.3,1689.2,0.71055965]
[1745340712972,5.98416439,1689.4,1689.2,0.71055965]
[1745340713441,0.06487869,1689.4,1689.2,0.71055965]
[1745340713648,5.98431641,1689.4,1689.2,0.71055965]
[1745340713959,5.69394938,1689.5,1689.2,0.71055965]
[1745340714135,11.67777604,1689.5,1689.2,0.71055965]
[1745340714335,17.5970008,1689.5,1689.2,0.71055965]
[1745340714559,11.61289735,1689.5,1689.2,0.71055965]
[1745340714760,11.67777604,1689.5,1689.2,0.71055965]
[1745340715640,5.91932119,1689.4,1689.2,0.71055965]
[1745340716049,11.83884308,1689.4,1689.2,0.71055965]
[1745340716351,11.8388268,1689.4,1689.2,0.71055965]
[1745340716663,5.91932119,1689.4,1689.2,0.11975965]
[1745340716866,11.83883571,1689.4,1689.2,0.11975965]
[1745340717052,5.91966901,1689.3,1688.9,8.92081262]
[1745340717255,5.91966901,1689.3,1689.0,0.89208126]
[1745340717582,5.91932119,1689.4,1689.0,0.89208126]
[1745340718283,11.83883266,1689.4,1689.0,0.89208126]
[1745340718471,5.91932119,1689.4,1689.0,0.89208126]
[1745340718649,5.91932119,1689.4,1689.0,6.81271867]
[1745340718850,5.91932119,1689.4,1689.1,0.68127187]
[1745340719064,5.91932119,1689.4,1689.0,0.89208126]
[1745340719962,11.83885331,1689.4,1689.0,0.89208126]
[1745340720148,5.91932119,1689.4,1689.0,0.89208126]
[1745340720681,11.83884123,1689.4,1689.0,0.89208126]
[1745340720981,11.8388405,1689.4,1689.0,0.89208126]
[1745340721182,5.91932119,1689.4,1689.0,0.89208126]
[1745340721397,0.06487869,1689.4,1689.0,0.89208126]
[1745340721686,5.91938117,1689.4,1688.9,8.9209548]
[1745340721853,17.82991173,1689.4,1688.9,8.9209548]
[1745340722055,5.91961647,1689.3,1688.9,8.9209548]
[1745340722372,17.82995084,1689.4,1688.9,8.9209548]
[1745340722573,5.91991317,1689.3,1688.8,7.29924993]
[1745340722784,5.98463514,1689.3,1688.8,8.62132843]
[1745340724078,5.98463514,1689.3,1688.8,8.6212802]
[1745340724278,5.98463514,1689.3,1688.8,14.542438]
[1745340724478,5.98463514,1689.3,1688.8,2.7000785]
[1745340724787,5.92408299,1688.1,1688.0,0.5908]
[1745340725006,5.991,1688.1,1687.5,0.7515]
[1745340725164,5.92506263,1687.8,1687.5,0.7515]
[1745340725347,5.92498014,1687.8,1687.5,0.7515]
[1745340725554,11.91647094,1687.7,1687.2,0.7515]
[1745340725759,11.91647094,1687.7,1687.2,7.98439305]
[1745340726189,5.92558969,1687.6,1687.2,2.05743052]
[1745340726389,5.92604948,1687.5,1687.2,2.05743052]
[1745340726691,11.91655109,1687.6,1687.2,0.7515]
[1745340726911,5.92641903,1687.4,1687.1,0.4060506]
[1745340727253,0.06487869,1687.6,1687.1,0.4060506]
[1745340727482,11.91713161,1687.5,1687.1,0.4060506]
[1745340727764,5.9267108,1687.3,1687.1,0.4060506]
[1745340727970,0.06487869,1687.4,1687.1,0.4060506]
[1745340728165,5.92682933,1687.3,1687.1,0.4060506]
[1745340728489,5.92682199,1687.3,1687.1,0.4060506]
[1745340728658,5.92680543,1687.3,1687.1,0.4060506]
[1745340729387,6.7557583,1687.2,1687.1,0.4060506]
[1745340729954,12.44970768,1687.2,1687.1,0.4060506]
[1745340730157,5.92733092,1687.1,1687.0,1e-08]
[1745340730505,6.82784431,1687.0,1686.0,5.93103383]
[1745340730683,6.82784431,1687.0,1685.9,0.7515]
[1745340730684,5.92894295,1686.7,1686.1,6.5236961]
[1745340730993,0.8126,1686.5,1686.2,5.93047289]
[1745340731159,0.06487869,1686.4,1685.8,0.5]
[1745340731359,0.06487869,1686.4,1685.9,5.93136632]
[1745340731588,0.06487869,1686.4,1686.0,0.11159422]
[1745340731872,5.99482925,1686.4,1685.8,7.19559385]
[1745340732069,0.06487869,1686.4,1686.1,0.11091095]
[1745340732268,0.06487869,1686.4,1686.0,5.93103387]
[1745340732472,0.06487869,1686.4,1686.1,0.11091095]
[1745340732669,0.06487869,1686.4,1686.1,6.04170746]
[1745340732869,0.8126,1686.5,1686.3,5.93014291]
[1745340732870,5.996,1686.5,1686.3,5.93014291]
[1745340733057,5.996,1686.6,1686.3,5.92995496]
[1745340733398,5.996,1686.6,1686.4,0.11258791]
[1745340733690,5.996,1686.6,1686.4,6.04224962]
[1745340733898,6.06287869,1686.8,1686.5,5.92943778]
[1745340734203,6.06287869,1686.8,1686.6,0.11122208]
[1745340734365,6.06287869,1686.8,1686.6,6.04008049]
[1745340734366,5.998,1686.8,1686.6,6.04008049]
[1745340734694,5.998,1686.8,1686.6,0.11122208]
[1745340735271,5.998,1686.8,1686.6,11.96899136]
[1745340735465,5.998,1686.8,1686.7,5.92873658]
[1745340735861,5.998,1686.8,1686.7,6.03927587]
[1745340736061,5.998,1686.8,1686.7,0.11053929]
[1745340736275,0.06487869,1687.1,1686.7,6.03927587]
[1745340736497,5.998,1687.1,1686.9,5.92780221]
[1745340736795,5.998,1687.1,1687.0,5.92768227]
[1745340737097,11.75682807,1687.4,1687.0,5.92768227]
[1745340737392,11.75682807,1687.4,1686.9,5.92778133]
[1745340737693,11.75682807,1687.4,1686.8,0.7637]
[1745340737897,5.92683927,1687.3,1686.8,0.7637]
[1745340738060,0.06487869,1687.2,1686.8,0.7637]
[1745340738400,5.9918898,1687.2,1686.8,0.7637]
[1745340738593,0.06487869,1687.2,1686.8,6.69181735]
[1745340739096,0.06487869,1687.2,1686.9,5.92800698]
[1745340739264,0.06487869,1687.3,1687.0,5.92753555]
[1745340739465,0.06487869,1687.3,1687.0,5.92747421]
[1745340739667,5.999,1687.3,1687.1,5.92721037]
[1745340740104,5.999,1687.3,1687.0,6.52018426]
[1745340740392,5.999,1687.3,1687.0,6.52020021]
[1745340740786,5.999,1687.3,1687.1,5.9272062]
[1745340741309,5.999,1687.3,1687.2,5.92697961]
[1745340741665,19.528,1687.5,1687.3,5.92647092]
[1745340741986,19.528,1687.5,1687.4,5.92627711]
[1745340742187,19.528,1687.5,1687.0,0.59274742]
[1745340742375,19.528,1687.5,1687.4,5.92627711]
[1745340742982,19.528,1687.5,1687.2,6.71315399]
[1745340743187,19.528,1687.5,1687.1,5.92705279]
[1745340743604,19.528,1687.5,1687.1,11.85419113]
[1745340743800,5.69394938,1687.8,1687.2,0.05926402]
[1745340744015,0.8289,1688.1,1687.5,5.92592592]
[1745340744192,0.8289,1688.1,1687.4,11.99015629]
[1745340744498,0.8289,1688.1,1687.7,5.92497814]
[1745340744700,1.48767281,1688.1,1687.6,5.92536138]
[1745340744901,1.48767281,1688.1,1687.7,5.92509816]
[1745340745103,5.92462647,1687.9,1687.3,3.7864]
[1745340745271,11.9235224,1687.9,1687.4,5.92603747]
[1745340745471,7.79027506,1687.9,1687.4,5.92603747]
[1745340745770,7.85515375,1687.9,1687.5,5.92591062]
[1745340745966,5.925054,1687.8,1687.3,6.71283445]
[1745340746201,0.06487869,1687.7,1687.3,0.7864]
[1745340746366,5.999,1687.9,1687.5,5.92589704]
[1745340746574,11.98856219,1687.9,1687.4,5.92611427]
[1745340746787,5.92487781,1687.8,1687.4,5.92611427]
[1745340747002,7.7902862,1687.9,1687.3,6.71287134]
[1745340747170,5.9252239,1687.7,1687.3,0.7864]
[1745340747507,5.75882807,1687.8,1687.3,6.71276688]
[1745340747676,5.75882807,1687.8,1687.4,5.92611505]
[1745340747872,5.75882807,1687.8,1687.4,5.92610784]
[1745340748100,5.69394938,1687.8,1687.3,0.7864]
[1745340748308,5.69394938,1687.8,1687.5,5.92571175]
[1745340748688,5.69394938,1687.8,1687.4,5.92602936]
[1745340748887,5.69394938,1687.8,1687.5,5.92577405]
[1745340749075,5.69394938,1687.8,1687.5,11.85151743]
[1745340749407,5.69394938,1687.8,1687.6,5.92540939]
[1745340749605,5.69394938,1687.8,1687.5,5.92567696]
[1745340750174,5.69394938,1687.8,1687.6,5.92555138]
[1745340750398,5.69394938,1687.8,1687.5,5.92567696]
[1745340750706,5.998,1688.1,1687.8,5.92467404]
[1745340750942,5.998,1688.1,1687.7,5.92498823]
[1745340751115,11.92198904,1688.1,1687.6,5.92539077]
[1745340751291,0.06487869,1688.0,1687.5,7.17622477]
[1745340751488,6.59543408,1688.0,1687.5,6.51650124]
[1745340751687,5.92470359,1687.9,1687.5,0.5908]
[1745340752122,6.59553873,1688.0,1687.6,5.92546795]
[1745340752123,0.67116656,1688.0,1687.6,5.92546795]
[1745340752298,0.06487869,1688.0,1687.7,5.9251785]
[1745340752623,5.998,1688.1,1687.7,11.85014506]
[1745340752921,5.998,1688.1,1687.7,5.92503053]
[1745340752922,11.92183058,1688.1,1687.7,5.92503053]
[1745340753140,5.998,1688.1,1687.7,5.92503053]
[1745340753285,6.06287869,1688.1,1687.6,6.51617]
[1745340753489,5.998,1688.1,1687.7,5.92508335]
[1745340753684,5.998,1688.1,1687.6,7.46783461]
[1745340753934,11.92194803,1688.1,1687.6,7.46783461]
[1745340754237,5.998,1688.1,1688.0,5.92417061]
[1745340754391,5.998,1688.1,1688.0,7.16825801]
[1745340754723,5.69394938,1688.5,1688.1,0.8262]
[1745340754724,11.68894938,1688.5,1688.1,0.8262]
[1745340754894,5.995,1688.5,1688.2,5.92324754]
[1745340755091,0.87557869,1688.6,1688.2,5.92323362]
[1745340755306,6.8057,1688.6,1688.2,5.92323362]
[1745340755821,5.92262777,1688.5,1688.0,7.69959663]
[1745340756027,14.00720434,1688.6,1688.1,5.923607]
[1745340756393,19.92953436,1688.6,1688.1,5.92368139]
[1745340756712,5.9874366,1688.5,1688.0,13.03280813]
[1745340756908,5.9875189,1688.5,1688.0,7.10880972]
[1745340757108,5.995,1688.6,1688.3,5.92294441]
[1745340757415,5.995,1688.6,1688.3,5.92288532]
[1745340757996,5.995,1688.6,1688.3,5.92288015]
[1745340758191,5.995,1688.6,1688.2,5.92322975]
[1745340758392,5.995,1688.6,1688.3,5.92307454]
[1745340758593,6.5945,1688.6,1688.2,5.923429]
[1745340758798,6.65937869,1688.6,1688.3,5.92301827]
[1745340759027,6.5945,1688.6,1688.3,5.92301827]
[1745340759220,5.995,1688.6,1688.3,5.92301827]
[1745340759396,5.995,1688.6,1688.3,5.92311423]
[1745340759596,5.995,1688.6,1688.2,11.84667918]
[1745340759795,5.995,1688.6,1688.3,5.92309627]
[1745340760326,5.995,1688.6,1688.3,11.84602354]
[1745340760543,5.995,1688.6,1688.4,0.05922291]
[1745340760828,5.995,1688.6,1688.3,1.18460235]
[1745340760829,5.995,1688.6,1688.3,5.92293968]
[1745340761008,5.995,1688.6,1688.2,12.67274319]
[1745340761339,6.05987869,1688.6,1688.3,5.92311402]
[1745340761630,5.995,1688.6,1688.3,5.92311402]
[1745340762157,6.05987869,1688.6,1688.2,6.74942765]
[1745340762330,6.05987869,1688.6,1688.1,6.63450597]
[1745340762510,13.26143476,1688.6,1688.1,5.9235756]
[1745340762709,5.92276711,1688.4,1687.7,0.5908]
[1745340763039,6.79871623,1688.3,1687.7,5.92494449]
[1745340763199,11.91773516,1688.2,1687.7,5.92494449]
[1745340763401,0.06487869,1688.1,1687.7,5.92494449]
[1745340763615,5.92477779,1687.9,1687.4,5.92613154]
[1745340763909,5.994,1687.8,1687.4,5.92607759]
[1745340764329,5.994,1687.8,1687.3,0.44796986]
[1745340764530,5.994,1687.8,1687.4,5.92593721]
[1745340764738,5.994,1687.8,1687.4,11.85199396]
[1745340765050,5.994,1687.8,1687.3,11.85282746]
[1745340765051,11.91889102,1687.8,1687.3,11.85282746]
[1745340765335,5.994,1687.8,1687.4,5.92627416]
[1745340765507,6.05887869,1687.8,1687.4,5.92627416]
[1745340765699,5.994,1687.8,1687.5,5.98517735]
[1745340765915,5.994,1687.8,1687.4,1.18526707]
[1745340766121,5.994,1687.8,1687.5,5.92564806]
[1745340766440,5.994,1687.8,1687.6,5.9253961]
[1745340766646,0.06487869,1688.1,1687.7,5.92503582]
[1745340766852,5.98894537,1688.1,1687.6,6.75165253]
[1745340767156,6.58761569,1688.1,1687.7,5.92520596]
[1745340767355,0.66377323,1688.1,1687.7,5.92520596]
[1745340767651,0.06487869,1688.2,1687.7,5.92510496]
[1745340767851,0.06487869,1688.2,1687.8,5.92474575]
[1745340768016,0.06487869,1688.2,1687.9,5.92450933]
[1745340768346,0.06487869,1688.2,1687.8,5.92467143]
[1745340768518,0.06487869,1688.2,1687.8,6.5170921]
[1745340768715,18.42190175,1688.3,1687.8,12.44176219]
[1745340768949,18.42190175,1688.3,1687.8,12.44176766]
[1745340769249,12.49864938,1688.3,1687.9,5.92424815]
[1745340769423,18.48667601,1688.3,1687.8,6.51714027]
[1745340769611,18.42179732,1688.3,1687.9,0.65171403]
[1745340770859,6.8047,1688.3,1687.9,6.57603696]
[1745340771157,6.86957869,1688.3,1687.9,6.57603696]
[1745340771520,6.86957869,1688.3,1687.9,0.65171403]
[1745340771723,6.86957869,1688.3,1687.8,11.84930557]
[1745340772059,6.86957869,1688.3,1687.8,5.92464032]
[1745340772232,12.792747,1688.3,1687.8,5.92464032]
[1745340772549,6.8047,1688.3,1687.9,5.92443968]
[1745340772715,6.86957869,1688.3,1687.9,5.92443968]
[1745340772916,6.86957869,1688.3,1687.9,5.92438087]
[1745340773546,0.30914185,1688.7,1688.4,5.92258509]
[1745340773765,0.8107,1688.8,1688.5,5.9814809]
[1745340774072,0.8107,1688.8,1688.0,9.75025125]
[1745340774073,0.8107,1688.8,1688.3,5.9228889]
[1745340774268,0.87557869,1688.8,1688.5,5.9222359]
[1745340774472,5.994,1689.0,1688.8,5.92133867]
[1745340774769,5.994,1689.0,1688.6,6.35512047]
[1745340774942,5.994,1689.0,1688.7,5.92169761]
[1745340775138,5.98620669,1688.9,1688.4,5.92258443]
[1745340775323,0.06487869,1688.9,1688.5,5.9222937]
[1745340775529,0.8107,1688.8,1688.5,5.92227985]
[1745340775752,0.8107,1688.8,1688.6,5.92203989]
[1745340775936,6.8047,1689.0,1688.6,5.92182816]
[1745340776242,6.8047,1689.0,1688.7,5.92140504]
[1745340776427,6.8047,1689.0,1688.8,5.92135898]
[1745340776428,5.994,1689.0,1688.8,5.92135898]
[1745340777560,5.994,1689.0,1688.8,7.16469299]
[1745340777761,5.994,1689.0,1688.6,6.8111]
[1745340777965,5.994,1689.0,1688.7,5.92150319]
[1745340779167,5.994,1689.0,1688.6,6.05]
[1745340779476,0.06487869,1688.9,1688.6,6.05]
[1745340779834,5.994,1689.0,1688.6,11.97175476]
[1745340780245,5.994,1689.0,1688.6,17.89364964]
[1745340780441,5.994,1689.0,1688.6,6.05]
[1745340780668,5.994,1689.0,1688.6,11.97184882]
[1745340781175,5.994,1689.0,1688.9,5.92101367]
[1745340782268,5.994,1689.0,1688.7,8.92152194]
[1745340782472,5.994,1689.0,1688.8,5.92134271]
[1745340782769,5.994,1689.0,1688.8,0.05920636]
[1745340782967,5.994,1689.0,1688.8,11.90140038]
[1745340783268,5.994,1689.0,1688.9,5.92101367]
[1745340783468,5.994,1689.0,1688.9,8.92101367]
[1745340783852,26.03104938,1689.5,1689.1,5.91998321]
[1745340784051,26.03104938,1689.5,1688.9,16.55444293]
[1745340784052,19.535,1689.5,1689.2,5.91969981]
[1745340784244,19.535,1689.5,1689.1,5.92013013]
[1745340784446,19.535,1689.5,1689.1,5.92006293]
[1745340784704,25.45405799,1689.5,1689.0,5.92059475]
[1745340784855,25.45405799,1689.5,1689.0,7.57446097]
[1745340785046,25.45405799,1689.5,1689.0,13.49486066]
[1745340785247,19.535,1689.5,1689.0,7.57443528]
[1745340785447,19.535,1689.5,1689.1,5.92015533]
[1745340785644,19.535,1689.5,1689.1,5.92014444]
[1745340785848,19.535,1689.5,1689.1,12.59766183]
[1745340786071,19.535,1689.5,1689.1,6.67751739]
[1745340786771,19.535,1689.5,1689.2,11.83951531]
[1745340787064,5.99,1689.6,1689.3,5.97858617]
[1745340787269,5.99,1689.6,1689.4,5.91923751]
[1745340787489,5.99,1689.6,1689.4,11.8383302]
[1745340787645,5.99,1689.6,1689.4,7.10887506]
[1745340787847,5.69394938,1689.8,1689.4,1.18978237]
[1745340788073,11.68294938,1689.8,1689.5,5.97780556]
[1745340788277,5.989,1689.8,1689.6,5.91834858]
[1745340788639,5.989,1689.8,1689.5,5.9186245]
[1745340789166,5.989,1689.8,1689.6,5.918399]
[1745340789469,5.989,1689.8,1689.4,6.37042124]
[1745340789668,5.989,1689.8,1689.4,7.14808287]
[1745340790676,5.989,1689.8,1689.4,13.06716835]
[1745340790845,5.989,1689.8,1689.4,7.14807539]
[1745340791174,5.989,1689.8,1689.4,7.59663488]
[1745340791673,0.06487869,1689.7,1689.2,12.76355289]
[1745340791874,5.91924828,1689.5,1688.9,11.97085809]
[1745340792212,5.9843203,1689.4,1688.8,6.72560197]
[1745340792379,0.7606,1689.3,1688.9,5.92091743]
[1745340792576,6.68032215,1689.3,1688.9,7.14969261]
[1745340792739,6.68043363,1689.3,1688.9,1.22877518]
[1745340792941,0.7606,1689.3,1688.9,7.14968869]
[1745340793179,6.68038782,1689.3,1688.9,4.22877518]
[1745340793347,0.7606,1689.3,1688.9,7.14952877]
[1745340793548,0.82547869,1689.3,1688.9,7.14952877]
[1745340793848,0.82547869,1689.3,1689.0,5.92061187]
[1745340794180,0.7606,1689.3,1689.0,5.92061187]
[1745340794344,0.7606,1689.3,1689.0,7.22762593]
[1745340794675,0.7606,1689.5,1689.1,5.92010565]
[1745340794983,6.67967408,1689.5,1689.1,3.0]
[1745340795146,6.67967408,1689.5,1689.1,8.92015028]
[1745340795147,0.7606,1689.5,1689.1,8.92015028]
[1745340795344,0.82547869,1689.5,1689.1,8.92015028]
[1745340795986,0.82547869,1689.5,1689.1,14.84030271]
[1745340796195,0.7606,1689.5,1689.1,10.61526794]
[1745340796687,6.74453229,1689.5,1689.1,4.69520032]
[1745340797080,6.74453229,1689.5,1689.1,10.61550075]
[1745340797588,6.74453229,1689.5,1689.1,10.6154847]
[1745340798788,0.82547869,1689.5,1689.1,10.6154847]
[1745340798993,0.7606,1689.5,1689.1,10.6154847]
[1745340799291,6.74449355,1689.5,1689.1,3.0]
[1745340799452,5.91939752,1689.4,1689.1,3.0]
[1745340799651,6.74449355,1689.5,1689.1,3.0]
[1745340799854,12.66371278,1689.5,1689.1,3.0]
[1745340800260,6.74449355,1689.5,1689.1,8.92027342]
[1745340800881,6.74449355,1689.5,1689.1,3.0]
[1745340801188,5.9193491,1689.4,1689.1,3.0]
[1745340801351,6.74449355,1689.5,1689.1,3.0]
[1745340801554,0.82547869,1689.5,1689.1,3.0]
[1745340801789,0.7606,1689.5,1689.1,10.00066963]
[1745340801991,0.82547869,1689.5,1689.1,10.00066963]
[1745340802863,0.82547869,1689.5,1689.1,4.08058141]
[1745340803072,6.74457221,1689.5,1689.1,3.0]
[1745340803257,12.66375689,1689.5,1689.1,3.0]
[1745340803468,5.91948611,1689.4,1689.0,0.5908]
[1745340803667,0.7606,1689.2,1688.9,3.5908]
[1745340803889,6.68067391,1689.2,1688.9,3.5908]
[1745340804089,12.66867391,1689.2,1688.9,3.5908]
[1745340804292,6.7486,1689.2,1688.9,11.06797162]
[1745340804498,6.7486,1689.2,1688.9,11.06779351]
[1745340804706,5.988,1689.2,1688.9,17.79298612]
[1745340804902,5.988,1689.2,1688.9,11.87219351]
[1745340805081,5.988,1689.2,1688.9,10.31598949]
[1745340806602,5.988,1689.2,1688.9,16.23676454]
[1745340807385,5.988,1689.2,1689.0,5.92065136]
[1745340807586,5.988,1689.2,1688.9,4.3952]
[1745340807804,5.988,1689.2,1689.1,5.92031259]
[1745340807992,6.81347869,1689.6,1689.3,5.91961167]
[1745340808199,6.81347869,1689.6,1689.2,5.97895747]
[1745340808708,6.7486,1689.6,1689.3,5.9193379]
[1745340809002,5.988,1689.6,1689.3,5.9193379]
[1745340809220,12.5055565,1689.6,1689.2,0.5908]
[1745340809519,12.57043519,1689.6,1689.2,0.5908]
[1745340810407,5.988,1689.6,1689.3,11.83892549]
[1745340810614,5.988,1689.6,1689.3,5.91945243]
[1745340810786,5.988,1689.6,1689.4,5.91909346]
[1745340810983,5.988,1689.6,1689.5,0.5908]
[1745340811195,5.988,1689.6,1689.4,5.91909346]
[1745340811715,5.988,1689.6,1689.3,6.72385243]
[1745340812515,0.06487869,1689.8,1689.5,3.0]
[1745340812815,6.81347869,1690.1,1689.7,5.91819812]
[1745340813513,0.82547869,1690.1,1689.7,3.0]
[1745340813715,6.45454938,1690.3,1689.9,5.91733997]
[1745340813926,0.7606,1690.3,1689.9,3.5908]
[1745340814429,6.7456,1690.5,1690.0,0.05916191]
[1745340814626,12.72604574,1690.5,1689.9,11.869777]
[1745340814842,5.91582204,1690.4,1689.9,5.95243988]
[1745340815064,18.57685595,1690.5,1689.9,11.86992691]
[1745340815349,5.91583793,1690.4,1689.9,12.30647448]
[1745340815506,5.91583793,1690.4,1690.0,1.82144745]
[1745340816060,5.91583793,1690.4,1690.0,1.23064745]
[1745340816260,5.91583793,1690.4,1689.9,5.79818745]
[1745340816928,12.66112836,1690.5,1689.9,5.79818745]
[1745340817110,18.57679008,1690.5,1689.9,11.7155704]
[1745340817630,12.66112836,1690.5,1689.9,5.79818745]
[1745340817838,11.83207576,1690.4,1689.9,5.79818745]
[1745340818162,5.91612368,1690.3,1690.0,0.57981875]
[1745340818543,11.83200087,1690.4,1690.0,0.57981875]
[1745340818752,5.91597412,1690.4,1690.0,0.57981875]
[1745340820049,11.83251857,1690.3,1689.9,0.8044]
[1745340820253,5.91622021,1690.3,1689.9,0.8044]